[Event "*** Titled Tuesday Blitz"]
[Site "Chess.com"]
[Date "2019.12.03"]
[Round "6"]
[White "JonahWillow"]
[Black "Ambitiousresolutions"]
[Result "1-0"]
[WhiteElo "2786"]
[BlackElo "2631"]
[TimeControl "180+2"]
[EndTime "14:24:24 PST"]
[Termination "JonahWillow won by resignation"]

1. e4 {[%clk 0:03:01.9]} 1... e5 {[%clk 0:03:00]} 2. Nf3 {[%clk 0:03:03]} 2...
Nc6 {[%clk 0:03:00.4]} 3. Nc3 {[%clk 0:03:04.2]} 3... Nf6 {[%clk 0:03:01]} 4.
Bb5 {[%clk 0:03:01.3]} 4... Bb4 {[%clk 0:03:00.8]} 5. O-O {[%clk 0:03:02]} 5...
O-O {[%clk 0:02:58]} 6. d3 {[%clk 0:03:02.8]} 6... Bxc3 {[%clk 0:02:58.2]} 7.
bxc3 {[%clk 0:03:04.7]} 7... d6 {[%clk 0:02:59.7]} 8. Bg5 {[%clk 0:03:05.5]}
8... h6 {[%clk 0:02:57.9]} 9. Bh4 {[%clk 0:03:02.4]} 9... Qe7 {[%clk 0:02:58.9]}
10. Re1 {[%clk 0:03:00.5]} 10... a6 {[%clk 0:02:55.5]} 11. Ba4 {[%clk
0:02:57.5]} 11... b5 {[%clk 0:02:51.2]} 12. Bb3 {[%clk 0:02:57.9]} 12... Na5
{[%clk 0:02:52.6]} 13. Nd2 {[%clk 0:02:56.7]} 13... Nxb3 {[%clk 0:02:51]} 14.
axb3 {[%clk 0:02:49.6]} 14... a5 {[%clk 0:02:40.7]} 15. c4 {[%clk 0:02:48]}
15... b4 {[%clk 0:02:34.7]} 16. h3 {[%clk 0:02:39.8]} 16... c5 {[%clk 0:02:34]}
17. Nf1 {[%clk 0:02:31.9]} 17... Be6 {[%clk 0:02:16.5]} 18. Ne3 {[%clk
0:02:26.3]} 18... g5 {[%clk 0:02:06.9]} 19. Bg3 {[%clk 0:02:27.1]} 19... Kg7
{[%clk 0:02:05.1]} 20. Qf3 {[%clk 0:02:19]} 20... Nd7 {[%clk 0:02:01.8]} 21. Rf1
{[%clk 0:02:12.9]} 21... Nb6 {[%clk 0:02:00.4]} 22. Qe2 {[%clk 0:01:56.4]} 22...
a4 {[%clk 0:01:58.7]} 23. Ra2 {[%clk 0:01:57.2]} 23... a3 {[%clk 0:01:56.1]} 24.
c3 {[%clk 0:01:50.3]} 24... bxc3 {[%clk 0:01:48.3]} 25. Qc2 {[%clk 0:01:44.4]}
25... Nd7 {[%clk 0:01:40.9]} 26. Qxc3 {[%clk 0:01:44.2]} 26... Nb8 {[%clk
0:01:34.3]} 27. Nd5 {[%clk 0:01:31]} 27... Bxd5 {[%clk 0:01:31.1]} 28. cxd5
{[%clk 0:01:29.3]} 28... f5 {[%clk 0:01:31.3]} 29. f3 {[%clk 0:01:28.4]} 29...
Na6 {[%clk 0:01:21.9]} 30. Rxa3 {[%clk 0:01:28.5]} 30... Nb4 {[%clk 0:01:23.1]}
31. Rxa8 {[%clk 0:01:28.1]} 31... Rxa8 {[%clk 0:01:25]} 32. f4 {[%clk
0:01:21.9]} 32... gxf4 {[%clk 0:01:13.4]} 33. Rxf4 {[%clk 0:01:09.1]} 33... fxe4
{[%clk 0:01:07.5]} 34. dxe4 {[%clk 0:01:05.6]} 34... Kh7 {[%clk 0:01:05.5]} 35.
Rg4 {[%clk 0:01:04]} 35... Rf8 {[%clk 0:00:58.2]} 36. Kh2 {[%clk 0:01:03.4]}
36... Rf1 {[%clk 0:00:57.1]} 37. Qe3 {[%clk 0:00:58]} 37... Qf6 {[%clk
0:00:33.5]} 38. Bh4 {[%clk 0:00:53.3]} 38... Qf7 {[%clk 0:00:31.9]} 39. Bd8
{[%clk 0:00:36.2]} 39... Nc2 {[%clk 0:00:27.6]} 40. Qg3 {[%clk 0:00:32.6]} 40...
Nd4 {[%clk 0:00:27.4]} 41. Qh4 {[%clk 0:00:31.6]} 41... Ne2 {[%clk 0:00:21]} 42.
Qe7 {[%clk 0:00:28.5]} 42... h5 {[%clk 0:00:14.2]} 43. Rg5 {[%clk 0:00:25.3]}
43... Kh6 {[%clk 0:00:14.4]} 44. Qxf7 {[%clk 0:00:25.5]} 44... Rxf7 {[%clk
0:00:16.3]} 45. Rf5 {[%clk 0:00:12.2]} 45... Rxf5 {[%clk 0:00:16.1]} 46. exf5
{[%clk 0:00:14.1]} 46... Nd4 {[%clk 0:00:16.7]} 47. f6 {[%clk 0:00:14]} 47...
Kg6 {[%clk 0:00:17.3]} 48. Be7 {[%clk 0:00:14.9]} 48... Nxb3 {[%clk 0:00:18]}
49. g4 {[%clk 0:00:12.8]} 49... hxg4 {[%clk 0:00:18.6]} 50. hxg4 {[%clk
0:00:14.7]} 50... c4 {[%clk 0:00:19.5]} 51. Bxd6 {[%clk 0:00:06.1]} 51... Kxf6
{[%clk 0:00:19.7]} 52. Bb4 {[%clk 0:00:07.5]} 52... Nd4 {[%clk 0:00:19.3]} 53.
Kg2 {[%clk 0:00:09.1]} 53... Nb5 {[%clk 0:00:18.9]} 54. Kf3 {[%clk 0:00:09.7]}
54... c3 {[%clk 0:00:20.3]} 55. Ke3 {[%clk 0:00:10.9]} 55... c2 {[%clk
0:00:21.3]} 56. Kd2 {[%clk 0:00:11.2]} 56... Nd4 {[%clk 0:00:22.5]} 57. Bc3
{[%clk 0:00:11.2]} 57... Nf3+ {[%clk 0:00:18.9]} 58. Kxc2 {[%clk 0:00:12.2]}
58... Nh2 {[%clk 0:00:20.8]} 59. g5+ {[%clk 0:00:10.9]} 59... Kxg5 {[%clk
0:00:22]} 60. d6 {[%clk 0:00:11.7]} 60... Nf3 {[%clk 0:00:23.8]} 61. d7 {[%clk
0:00:09.8]} 1-0

[Event "*** Titled Tuesday Blitz"]
[Site "Chess.com"]
[Date "2019.12.03"]
[Round "6"]
[White "Azatic"]
[Black "CarlssonLudvig"]
[Result "1-0"]
[WhiteElo "2630"]
[BlackElo "2435"]
[TimeControl "180+2"]
[EndTime "14:24:26 PST"]
[Termination "Azatic won by checkmate"]

1. e4 {[%clk 0:02:43.9]} 1... c6 {[%clk 0:02:57]} 2. d4 {[%clk 0:02:44.5]} 2...
d5 {[%clk 0:02:57.9]} 3. e5 {[%clk 0:02:46]} 3... Bf5 {[%clk 0:02:58.6]} 4. Nf3
{[%clk 0:02:47.3]} 4... e6 {[%clk 0:02:59.4]} 5. Be2 {[%clk 0:02:48.8]} 5... Ne7
{[%clk 0:02:59.9]} 6. O-O {[%clk 0:02:49.9]} 6... Nc8 {[%clk 0:03:00.6]} 7. b3
{[%clk 0:02:49.1]} 7... Nd7 {[%clk 0:02:55.9]} 8. c4 {[%clk 0:02:49.9]} 8... Be7
{[%clk 0:02:54]} 9. Nc3 {[%clk 0:02:50.9]} 9... O-O {[%clk 0:02:53.7]} 10. Be3
{[%clk 0:02:49.7]} 10... f6 {[%clk 0:02:41.7]} 11. Rc1 {[%clk 0:02:40.1]} 11...
fxe5 {[%clk 0:02:39.2]} 12. dxe5 {[%clk 0:02:40.3]} 12... Bg4 {[%clk 0:02:31]}
13. cxd5 {[%clk 0:02:34]} 13... Bxf3 {[%clk 0:02:26.2]} 14. Bxf3 {[%clk
0:02:34.3]} 14... cxd5 {[%clk 0:02:22.6]} 15. Nxd5 {[%clk 0:02:09.9]} 15... exd5
{[%clk 0:02:21.1]} 16. Qxd5+ {[%clk 0:02:06.2]} 16... Kh8 {[%clk 0:02:20.5]} 17.
Rfd1 {[%clk 0:02:06.8]} 17... Ncb6 {[%clk 0:02:05.2]} 18. Qxb7 {[%clk
0:01:54.9]} 18... Qe8 {[%clk 0:01:32.7]} 19. e6 {[%clk 0:01:49.7]} 19... Ne5
{[%clk 0:01:32.8]} 20. Be4 {[%clk 0:01:46]} 20... Ba3 {[%clk 0:01:17.1]} 21.
Bxb6 {[%clk 0:00:49.9]} 21... Bxc1 {[%clk 0:01:09.3]} 22. Qxa8 {[%clk
0:00:46.5]} 22... axb6 {[%clk 0:00:16.5]} 23. Qxe8 {[%clk 0:00:43.7]} 23... Rxe8
{[%clk 0:00:18.4]} 24. Rxc1 {[%clk 0:00:45]} 24... g6 {[%clk 0:00:16.5]} 25. f4
{[%clk 0:00:44.2]} 25... Ng4 {[%clk 0:00:16.2]} 26. h3 {[%clk 0:00:43.2]} 26...
Rxe6 {[%clk 0:00:15.1]} 27. Rc8+ {[%clk 0:00:20.1]} 27... Kg7 {[%clk 0:00:15.3]}
28. Rc7+ {[%clk 0:00:20.5]} 28... Kf6 {[%clk 0:00:14.8]} 29. hxg4 {[%clk
0:00:21.4]} 29... Rxe4 {[%clk 0:00:15.9]} 30. g3 {[%clk 0:00:22.8]} 30... Re2
{[%clk 0:00:15.9]} 31. Rc6+ {[%clk 0:00:23.2]} 31... Kg7 {[%clk 0:00:16.4]} 32.
Rxb6 {[%clk 0:00:24.7]} 32... Rxa2 {[%clk 0:00:18]} 33. g5 {[%clk 0:00:26.2]}
33... Rb2 {[%clk 0:00:19]} 34. Rb4 {[%clk 0:00:26.9]} 34... Kf7 {[%clk 0:00:18]}
35. Rb6 {[%clk 0:00:27.8]} 35... Ke7 {[%clk 0:00:17.6]} 36. g4 {[%clk
0:00:29.1]} 36... Kf7 {[%clk 0:00:18.6]} 37. f5 {[%clk 0:00:30.2]} 37... gxf5
{[%clk 0:00:19.2]} 38. gxf5 {[%clk 0:00:32.1]} 38... Ke7 {[%clk 0:00:20]} 39.
Rb7+ {[%clk 0:00:32.8]} 39... Kf8 {[%clk 0:00:20.8]} 40. f6 {[%clk 0:00:22.4]}
40... Kg8 {[%clk 0:00:16.9]} 41. Rg7+ {[%clk 0:00:20]} 41... Kh8 {[%clk
0:00:14.6]} 42. Rb7 {[%clk 0:00:17.2]} 42... Kg8 {[%clk 0:00:15]} 43. Kf1 {[%clk
0:00:18.6]} 43... Kf8 {[%clk 0:00:11.8]} 44. Rxh7 {[%clk 0:00:18.4]} 44... Rxb3
{[%clk 0:00:12.6]} 45. Kf2 {[%clk 0:00:20]} 45... Rb5 {[%clk 0:00:13]} 46. Rg7
{[%clk 0:00:21.3]} 46... Rb3 {[%clk 0:00:11.4]} 47. Ra7 {[%clk 0:00:21.9]} 47...
Rb5 {[%clk 0:00:11.2]} 48. Rg7 {[%clk 0:00:20.5]} 48... Rb3 {[%clk 0:00:11.9]}
49. g6 {[%clk 0:00:21.2]} 49... Rb6 {[%clk 0:00:10.7]} 50. Rf7+ {[%clk
0:00:22.2]} 50... Kg8 {[%clk 0:00:12.3]} 51. Kf3 {[%clk 0:00:23.4]} 51... Rc6
{[%clk 0:00:13]} 52. Kf4 {[%clk 0:00:24.1]} 52... Rb6 {[%clk 0:00:13.5]} 53. Kg5
{[%clk 0:00:25.3]} 53... Rb1 {[%clk 0:00:06.4]} 54. Rg7+ {[%clk 0:00:18.7]}
54... Kh8 {[%clk 0:00:05.9]} 55. Ra7 {[%clk 0:00:18.1]} 55... Rg1+ {[%clk
0:00:05.8]} 56. Kf5 {[%clk 0:00:19.4]} 56... Rf1+ {[%clk 0:00:06.7]} 57. Ke6
{[%clk 0:00:20.4]} 57... Re1+ {[%clk 0:00:05.1]} 58. Kf7 {[%clk 0:00:20]} 58...
Rg1 {[%clk 0:00:02.8]} 59. Ra8# {[%clk 0:00:20.6]} 1-0

[Event "*** Titled Tuesday Blitz"]
[Site "Chess.com"]
[Date "2019.12.03"]
[Round "6"]
[White "HiHaruka"]
[Black "josiur"]
[Result "1/2-1/2"]
[WhiteElo "2307"]
[BlackElo "2430"]
[TimeControl "180+2"]
[EndTime "14:24:42 PST"]
[Termination "Game drawn - insufficient material"]

1. c4 {[%clk 0:02:56.9]} 1... c5 {[%clk 0:03:00.1]} 2. Nf3 {[%clk 0:02:56.9]}
2... Nc6 {[%clk 0:03:01.2]} 3. Nc3 {[%clk 0:02:56.7]} 3... g6 {[%clk 0:03:02.4]}
4. d4 {[%clk 0:02:57.6]} 4... cxd4 {[%clk 0:03:01]} 5. Nxd4 {[%clk 0:02:59.5]}
5... Bg7 {[%clk 0:03:02.9]} 6. e3 {[%clk 0:02:46.4]} 6... Nf6 {[%clk 0:03:00.9]}
7. Be2 {[%clk 0:02:39]} 7... O-O {[%clk 0:03:01.4]} 8. b3 {[%clk 0:02:37.9]}
8... d5 {[%clk 0:02:59.5]} 9. Bb2 {[%clk 0:02:26.1]} 9... dxc4 {[%clk
0:02:57.9]} 10. Nxc6 {[%clk 0:02:26.2]} 10... Qxd1+ {[%clk 0:02:55.3]} 11. Nxd1
{[%clk 0:02:22.7]} 11... bxc6 {[%clk 0:02:56.7]} 12. Bxc4 {[%clk 0:02:23.3]}
12... Rd8 {[%clk 0:02:53.7]} 13. O-O {[%clk 0:02:18.4]} 13... Bf5 {[%clk
0:02:48.4]} 14. f3 {[%clk 0:02:14.4]} 14... Rd2 {[%clk 0:02:38.7]} 15. Bc3
{[%clk 0:02:12.8]} 15... Rdd8 {[%clk 0:02:16.2]} 16. e4 {[%clk 0:02:12.4]} 16...
Bd7 {[%clk 0:02:13.8]} 17. Ne3 {[%clk 0:02:07.7]} 17... Be8 {[%clk 0:02:14.1]}
18. Rfd1 {[%clk 0:02:07.4]} 18... Nh5 {[%clk 0:01:55.1]} 19. Bxg7 {[%clk
0:01:50.8]} 19... Kxg7 {[%clk 0:01:56.9]} 20. Kf2 {[%clk 0:01:37.2]} 20... e5
{[%clk 0:01:46.5]} 21. Ng4 {[%clk 0:01:00.3]} 21... f6 {[%clk 0:01:43.9]} 22.
Rac1 {[%clk 0:00:57.2]} 22... Nf4 {[%clk 0:01:36.6]} 23. g3 {[%clk 0:00:44.3]}
23... Nh3+ {[%clk 0:01:32.9]} 24. Ke3 {[%clk 0:00:44.3]} 24... Ng5 {[%clk
0:01:34.2]} 25. f4 {[%clk 0:00:40.7]} 25... exf4+ {[%clk 0:01:33.1]} 26. gxf4
{[%clk 0:00:42.6]} 26... Nf7 {[%clk 0:01:31.8]} 27. Be6 {[%clk 0:00:24.1]} 27...
h5 {[%clk 0:01:27.6]} 28. Nf2 {[%clk 0:00:23.4]} 28... Nd6 {[%clk 0:01:21.3]}
29. Rd2 {[%clk 0:00:19.6]} 29... Nb5 {[%clk 0:01:13]} 30. Rcd1 {[%clk
0:00:20.1]} 30... Rxd2 {[%clk 0:01:13.6]} 31. Rxd2 {[%clk 0:00:22]} 31... Kf8
{[%clk 0:01:14.6]} 32. a4 {[%clk 0:00:20.5]} 32... Nc7 {[%clk 0:01:12.5]} 33.
Bc4 {[%clk 0:00:20.7]} 33... Ke7 {[%clk 0:01:12.5]} 34. Nd3 {[%clk 0:00:19.5]}
34... Rd8 {[%clk 0:01:07.1]} 35. h4 {[%clk 0:00:19.8]} 35... Bf7 {[%clk
0:00:52.2]} 36. Bxf7 {[%clk 0:00:14.8]} 36... Kxf7 {[%clk 0:00:53.2]} 37. Ne5+
{[%clk 0:00:15]} 37... Ke8 {[%clk 0:00:47.8]} 38. Rxd8+ {[%clk 0:00:15.1]} 38...
Kxd8 {[%clk 0:00:49.7]} 39. Nxc6+ {[%clk 0:00:14.8]} 39... Kd7 {[%clk
0:00:50.9]} 40. Nxa7 {[%clk 0:00:16.4]} 40... Ne6 {[%clk 0:00:51.2]} 41. b4
{[%clk 0:00:13.4]} 41... g5 {[%clk 0:00:48.4]} 42. fxg5 {[%clk 0:00:11.1]} 42...
fxg5 {[%clk 0:00:49.8]} 43. hxg5 {[%clk 0:00:12.2]} 43... Nxg5 {[%clk
0:00:51.7]} 44. Nb5 {[%clk 0:00:13.1]} 44... h4 {[%clk 0:00:51.1]} 45. Nd4
{[%clk 0:00:14]} 45... h3 {[%clk 0:00:49.5]} 46. Nf3 {[%clk 0:00:12.8]} 46...
Ne6 {[%clk 0:00:49.5]} 47. Kf2 {[%clk 0:00:08.7]} 47... Nf4 {[%clk 0:00:40.7]}
48. Kg3 {[%clk 0:00:08.5]} 48... Nd3 {[%clk 0:00:41.6]} 49. b5 {[%clk
0:00:07.6]} 49... Nc5 {[%clk 0:00:40.5]} 50. Kxh3 {[%clk 0:00:04]} 50... Nxa4
{[%clk 0:00:38]} 51. Kg4 {[%clk 0:00:04.7]} 51... Nc3 {[%clk 0:00:38.4]} 52. Nd4
{[%clk 0:00:05.3]} 52... Nxe4 {[%clk 0:00:38.9]} 53. Kf4 {[%clk 0:00:06.5]}
53... Nd6 {[%clk 0:00:39.3]} 54. b6 {[%clk 0:00:07.2]} 54... Nc4 {[%clk
0:00:37]} 55. b7 {[%clk 0:00:04.7]} 55... Kc7 {[%clk 0:00:37.5]} 56. Ke4 {[%clk
0:00:04.3]} 56... Kxb7 {[%clk 0:00:37.2]} 1/2-1/2

[Event "*** Titled Tuesday Blitz"]
[Site "Chess.com"]
[Date "2019.12.03"]
[Round "6"]
[White "DangerousPlayer1st"]
[Black "Sanan_Sjugirov"]
[Result "1/2-1/2"]
[WhiteElo "2796"]
[BlackElo "2910"]
[TimeControl "180+2"]
[EndTime "14:24:46 PST"]
[Termination "Game drawn by repetition"]

1. e4 {[%clk 0:03:01.9]} 1... c5 {[%clk 0:02:58.9]} 2. Nf3 {[%clk 0:03:02.9]}
2... d6 {[%clk 0:03:00.1]} 3. d4 {[%clk 0:03:03.8]} 3... cxd4 {[%clk 0:03:02]}
4. Nxd4 {[%clk 0:03:05.7]} 4... Nf6 {[%clk 0:03:03.6]} 5. Nc3 {[%clk 0:03:06]}
5... a6 {[%clk 0:03:05.1]} 6. h3 {[%clk 0:03:06.7]} 6... e6 {[%clk 0:03:04.3]}
7. g4 {[%clk 0:03:07.9]} 7... Be7 {[%clk 0:03:05.1]} 8. g5 {[%clk 0:03:08.4]}
8... Nfd7 {[%clk 0:03:06]} 9. Be3 {[%clk 0:03:09.9]} 9... b5 {[%clk 0:03:04.4]}
10. a3 {[%clk 0:03:10.6]} 10... Bb7 {[%clk 0:03:04.5]} 11. Qd2 {[%clk
0:03:11.6]} 11... Nc6 {[%clk 0:03:00.7]} 12. h4 {[%clk 0:03:12.3]} 12... Rc8
{[%clk 0:02:57]} 13. Nxc6 {[%clk 0:03:09.8]} 13... Bxc6 {[%clk 0:02:55.2]} 14.
h5 {[%clk 0:03:08.7]} 14... Rb8 {[%clk 0:02:43.3]} 15. O-O-O {[%clk 0:03:04.3]}
15... a5 {[%clk 0:02:42.9]} 16. Ne2 {[%clk 0:02:56.3]} 16... Bxe4 {[%clk
0:02:34.5]} 17. Rh4 {[%clk 0:02:56.8]} 17... Bf3 {[%clk 0:02:17.1]} 18. Re1
{[%clk 0:02:50.1]} 18... b4 {[%clk 0:01:51.5]} 19. a4 {[%clk 0:02:49.1]} 19...
Ba8 {[%clk 0:01:40.4]} 20. Nd4 {[%clk 0:02:37.1]} 20... O-O {[%clk 0:01:41.3]}
21. Rh3 {[%clk 0:02:33.8]} 21... Nc5 {[%clk 0:01:37.7]} 22. g6 {[%clk
0:02:33.4]} 22... Bf6 {[%clk 0:01:34.8]} 23. Bc4 {[%clk 0:02:14.5]} 23... d5
{[%clk 0:01:22.1]} 24. Bb5 {[%clk 0:02:09.8]} 24... Rc8 {[%clk 0:01:02.4]} 25.
Kb1 {[%clk 0:02:07.6]} 25... e5 {[%clk 0:00:59.2]} 26. Nf5 {[%clk 0:02:06]}
26... d4 {[%clk 0:01:00.3]} 27. Bh6 {[%clk 0:01:45.9]} 27... Be4 {[%clk
0:00:44.1]} 28. Rxe4 {[%clk 0:01:36.6]} 28... Nxe4 {[%clk 0:00:44.7]} 29. Qe2
{[%clk 0:01:37.7]} 29... Nd6 {[%clk 0:00:41.6]} 30. Nxg7 {[%clk 0:01:27.7]}
30... Bxg7 {[%clk 0:00:39]} 31. Bxg7 {[%clk 0:01:26.6]} 31... Kxg7 {[%clk
0:00:39.9]} 32. Qxe5+ {[%clk 0:01:25.9]} 32... Kh6 {[%clk 0:00:14.5]} 33. Qf4+
{[%clk 0:01:15.5]} 33... Qg5 {[%clk 0:00:15.6]} 34. Qxd6 {[%clk 0:01:16.8]}
34... Rfd8 {[%clk 0:00:16.7]} 35. Bd7 {[%clk 0:00:49.3]} 35... f6 {[%clk
0:00:15.1]} 36. Rg3 {[%clk 0:00:42.1]} 36... Qd2 {[%clk 0:00:10.1]} 37. Qxf6
{[%clk 0:00:28.8]} 37... Qxc2+ {[%clk 0:00:11.3]} 38. Ka1 {[%clk 0:00:22.8]}
38... Qc1+ {[%clk 0:00:08.9]} 39. Ka2 {[%clk 0:00:23.2]} 39... b3+ {[%clk
0:00:10.6]} 40. Rxb3 {[%clk 0:00:21.8]} 40... Qg5 {[%clk 0:00:06.6]} 41. Qe6
{[%clk 0:00:18.9]} 41... Rc7 {[%clk 0:00:03.2]} 42. g7+ {[%clk 0:00:14.5]} 42...
Kxg7 {[%clk 0:00:04.1]} 43. Rg3 {[%clk 0:00:15.6]} 43... Qxg3 {[%clk 0:00:05]}
44. fxg3 {[%clk 0:00:17.5]} 44... Rcxd7 {[%clk 0:00:05.9]} 45. h6+ {[%clk
0:00:15.6]} 45... Kf8 {[%clk 0:00:05.6]} 46. Qf6+ {[%clk 0:00:13.8]} 46... Kg8
{[%clk 0:00:06.3]} 47. g4 {[%clk 0:00:14.7]} 47... d3 {[%clk 0:00:06.8]} 48.
Qe6+ {[%clk 0:00:14.6]} 48... Rf7 {[%clk 0:00:05.7]} 49. g5 {[%clk 0:00:13.1]}
49... d2 {[%clk 0:00:04.3]} 50. g6 {[%clk 0:00:14.6]} 50... hxg6 {[%clk
0:00:05.5]} 51. Qxg6+ {[%clk 0:00:15.7]} 51... Kf8 {[%clk 0:00:06.9]} 52. h7
{[%clk 0:00:16.9]} 52... Rxh7 {[%clk 0:00:08]} 53. Qf6+ {[%clk 0:00:18.4]} 53...
Ke8 {[%clk 0:00:09.6]} 54. Qe6+ {[%clk 0:00:17.8]} 54... Re7 {[%clk 0:00:10]}
55. Qg8+ {[%clk 0:00:18.4]} 55... Kd7 {[%clk 0:00:11.5]} 56. Qd5+ {[%clk
0:00:20.3]} 56... Kc8 {[%clk 0:00:12.2]} 57. Qc6+ {[%clk 0:00:19.4]} 57... Rc7
{[%clk 0:00:11.5]} 58. Qa8+ {[%clk 0:00:20.6]} 58... Kd7 {[%clk 0:00:12.7]} 59.
Qd5+ {[%clk 0:00:21.7]} 59... Kc8 {[%clk 0:00:13.9]} 60. Qa8+ {[%clk 0:00:22]}
60... Kd7 {[%clk 0:00:15.2]} 61. Qd5+ {[%clk 0:00:22.6]} 61... Kc8 {[%clk
0:00:16.4]} 62. Qa8+ {[%clk 0:00:22.8]} 1/2-1/2

[Event "*** Titled Tuesday Blitz"]
[Site "Chess.com"]
[Date "2019.12.03"]
[Round "6"]
[White "Sajkochess"]
[Black "eCztery"]
[Result "1-0"]
[WhiteElo "2268"]
[BlackElo "2397"]
[TimeControl "180+2"]
[EndTime "14:24:46 PST"]
[Termination "Sajkochess won by checkmate"]

1. e4 {[%clk 0:03:01.9]} 1... c5 {[%clk 0:02:58.8]} 2. Nf3 {[%clk 0:03:03]} 2...
Nc6 {[%clk 0:03:00.3]} 3. d4 {[%clk 0:03:02]} 3... cxd4 {[%clk 0:03:02.2]} 4.
Nxd4 {[%clk 0:03:03.9]} 4... g6 {[%clk 0:03:03.4]} 5. g3 {[%clk 0:03:02.9]} 5...
Bg7 {[%clk 0:03:02.9]} 6. Ne2 {[%clk 0:03:04.4]} 6... Qa5+ {[%clk 0:02:48.6]} 7.
Nbc3 {[%clk 0:02:59.5]} 7... Nf6 {[%clk 0:02:43.7]} 8. Bg2 {[%clk 0:03:00]} 8...
O-O {[%clk 0:02:39.2]} 9. O-O {[%clk 0:02:57.2]} 9... d6 {[%clk 0:02:40.7]} 10.
b3 {[%clk 0:02:37.9]} 10... Bg4 {[%clk 0:02:14.9]} 11. Bb2 {[%clk 0:02:22.8]}
11... Qh5 {[%clk 0:01:59.6]} 12. f3 {[%clk 0:01:48.5]} 12... Bh3 {[%clk
0:01:48.1]} 13. Nf4 {[%clk 0:01:36.9]} 13... Qc5+ {[%clk 0:01:47.9]} 14. Kh1
{[%clk 0:01:37.8]} 14... Bxg2+ {[%clk 0:01:49.8]} 15. Kxg2 {[%clk 0:01:38.7]}
15... Ng4 {[%clk 0:01:39.6]} 16. fxg4 {[%clk 0:01:26.7]} 16... Bxc3 {[%clk
0:01:35.9]} 17. Bxc3 {[%clk 0:01:11]} 17... Qxc3 {[%clk 0:01:37.8]} 18. Nd5
{[%clk 0:01:01.9]} 18... Qe5 {[%clk 0:01:23.5]} 19. Qf3 {[%clk 0:00:43]} 19...
Nd4 {[%clk 0:01:19.7]} 20. Qf4 {[%clk 0:00:41]} 20... Nxc2 {[%clk 0:01:17.2]}
21. Qxe5 {[%clk 0:00:35.6]} 21... dxe5 {[%clk 0:01:17.9]} 22. Rac1 {[%clk
0:00:35.7]} 22... Nd4 {[%clk 0:00:50.1]} 23. Nxe7+ {[%clk 0:00:35.9]} 23... Kg7
{[%clk 0:00:51.3]} 24. Rc7 {[%clk 0:00:35.5]} 24... b5 {[%clk 0:00:46]} 25. Rfc1
{[%clk 0:00:20.7]} 25... a5 {[%clk 0:00:44.2]} 26. R7c5 {[%clk 0:00:17.5]} 26...
a4 {[%clk 0:00:43.5]} 27. b4 {[%clk 0:00:16.1]} 27... Rfe8 {[%clk 0:00:33.2]}
28. Nd5 {[%clk 0:00:10.6]} 28... Rab8 {[%clk 0:00:21.4]} 29. h4 {[%clk
0:00:08.7]} 29... a3 {[%clk 0:00:19.3]} 30. g5 {[%clk 0:00:09.3]} 30... Red8
{[%clk 0:00:17.3]} 31. Rc7 {[%clk 0:00:08.2]} 31... Rf8 {[%clk 0:00:15.6]} 32.
Ra7 {[%clk 0:00:08.8]} 32... Ra8 {[%clk 0:00:16.5]} 33. Rcc7 {[%clk 0:00:08.9]}
33... Rxa7 {[%clk 0:00:16.6]} 34. Rxa7 {[%clk 0:00:09.9]} 34... Nc2 {[%clk
0:00:18.5]} 35. Nc7 {[%clk 0:00:05.5]} 35... Nxb4 {[%clk 0:00:18.3]} 36. Ne6+
{[%clk 0:00:04.5]} 36... Kg8 {[%clk 0:00:19.4]} 37. Nxf8 {[%clk 0:00:06.1]}
37... Kxf8 {[%clk 0:00:21.3]} 38. Rxa3 {[%clk 0:00:07.1]} 38... Nc2 {[%clk
0:00:21.2]} 39. Rb3 {[%clk 0:00:08.4]} 39... b4 {[%clk 0:00:22.1]} 40. Kf2
{[%clk 0:00:07.7]} 40... Ke7 {[%clk 0:00:22.1]} 41. Rb2 {[%clk 0:00:09]} 41...
b3 {[%clk 0:00:17.5]} 42. axb3 {[%clk 0:00:09.1]} 42... Nb4 {[%clk 0:00:18.5]}
43. Rd2 {[%clk 0:00:09.1]} 43... Ke6 {[%clk 0:00:19.5]} 44. Rd8 {[%clk
0:00:09.6]} 44... f5 {[%clk 0:00:20.8]} 45. exf5+ {[%clk 0:00:08.9]} 45... gxf5
{[%clk 0:00:22.7]} 46. Rh8 {[%clk 0:00:09.8]} 46... e4 {[%clk 0:00:23.5]} 47.
Rxh7 {[%clk 0:00:11]} 47... Nd3+ {[%clk 0:00:25.4]} 48. Ke3 {[%clk 0:00:12]}
48... Nc5 {[%clk 0:00:26]} 49. Rh6+ {[%clk 0:00:12.5]} 49... Ke5 {[%clk
0:00:26.5]} 50. Rb6 {[%clk 0:00:13.3]} 50... Nd3 {[%clk 0:00:23.5]} 51. Rb5+
{[%clk 0:00:14.4]} 51... Ke6 {[%clk 0:00:24.4]} 52. h5 {[%clk 0:00:14]} 52...
Ne1 {[%clk 0:00:21.7]} 53. h6 {[%clk 0:00:11.9]} 53... Nc2+ {[%clk 0:00:23.2]}
54. Kf2 {[%clk 0:00:09.7]} 54... e3+ {[%clk 0:00:24.5]} 55. Ke2 {[%clk
0:00:03.4]} 55... Nd4+ {[%clk 0:00:25.4]} 56. Kxe3 {[%clk 0:00:04.6]} 56... Nxb5
{[%clk 0:00:27.3]} 57. h7 {[%clk 0:00:05.9]} 57... Nc7 {[%clk 0:00:22.2]} 58.
h8=Q {[%clk 0:00:06.7]} 58... Nd5+ {[%clk 0:00:24.1]} 59. Kd4 {[%clk 0:00:08.1]}
59... Ne7 {[%clk 0:00:26]} 60. Qe5+ {[%clk 0:00:09.2]} 60... Kd7 {[%clk
0:00:27.1]} 61. Qxe7+ {[%clk 0:00:10.2]} 61... Kxe7 {[%clk 0:00:28.4]} 62. Ke5
{[%clk 0:00:11.8]} 62... f4 {[%clk 0:00:30.3]} 63. Kxf4 {[%clk 0:00:13.1]} 63...
Kd6 {[%clk 0:00:31.6]} 64. Kf5 {[%clk 0:00:14.5]} 64... Kc5 {[%clk 0:00:33.5]}
65. Kf6 {[%clk 0:00:15.9]} 65... Kb4 {[%clk 0:00:35.4]} 66. g6 {[%clk
0:00:17.3]} 66... Kxb3 {[%clk 0:00:37.3]} 67. g7 {[%clk 0:00:19.1]} 67... Kc4
{[%clk 0:00:39.2]} 68. g8=Q+ {[%clk 0:00:20.3]} 68... Kc5 {[%clk 0:00:40.6]} 69.
Qd8 {[%clk 0:00:21.9]} 69... Kc6 {[%clk 0:00:41.9]} 70. Ke5 {[%clk 0:00:23.4]}
70... Kb7 {[%clk 0:00:43.8]} 71. Kd6 {[%clk 0:00:24.3]} 71... Ka6 {[%clk
0:00:45.1]} 72. Qb8 {[%clk 0:00:24.9]} 72... Ka5 {[%clk 0:00:45.8]} 73. Kc5
{[%clk 0:00:26.4]} 73... Ka4 {[%clk 0:00:47.7]} 74. Qb4# {[%clk 0:00:27.6]} 1-0